bitfinex/quotes_ETHUSD_20240717
["timestamp","ask_amount","ask_price","bid_price","bid_amount"]
[1721197495271,2.85771,3499.3,3499.2,2.4013]
[1721197495467,2.85804,3498.9,3498.5,2.3536]
[1721197495899,2.85793,3499.1,3498.6,0.04701625]
[1721197496075,2.85793,3499.1,3498.7,2.36]
[1721197496476,2.85793,3499.1,3498.8,0.04691624]
[1721197496785,2.85774,3499.3,3498.9,2.293]
[1721197496961,2.85779,3499.2,3498.9,2.293]
[1721197497158,2.85779,3499.2,3499.0,0.04682085]
[1721197497417,2.85787,3499.1,3499.0,0.04682085]
[1721197497695,2.85787,3499.1,3498.9,2.293]
[1721197498073,2.85777,3499.3,3499.0,0.04682452]
[1721197498925,2.85787,3499.1,3499.0,0.04682452]
[1721197502861,5.71574,3499.1,3499.0,0.04682452]
[1721197503062,5.7159,3499.0,3498.9,2.293]
[1721197503260,2.85828,3498.7,3498.2,2.4222]
[1721197503664,2.85828,3498.7,3498.3,0.04717454]
[1721197504315,2.8583,3498.6,3498.3,0.04717454]
[1721197504511,2.85843,3498.5,3498.3,0.04717454]
[1721197505803,6.288551,3498.4,3498.3,0.04717454]
[1721197506005,5.71688,3498.4,3498.3,0.04717454]
[1721197506217,5.71688,3498.4,3498.2,2.4222]
[1721197506218,2.85853,3498.3,3498.2,2.4222]
[1721197506410,2.85853,3498.3,3498.2,2.46946495]
[1721197507193,5.71706,3498.3,3498.2,2.46946495]
[1721197508683,5.71706,3498.3,3498.2,2.4222]
[1721197509082,5.71706,3498.3,3498.2,2.46946495]
[1721197509672,2.85853,3498.3,3498.2,2.46946495]
[1721197510177,5.71706,3498.3,3498.2,0.04726495]
[1721197510566,2.85867,3498.2,3498.0,2.2934]
[1721197510808,2.85847,3498.4,3498.0,2.2934]
[1721197511011,2.85775,3499.3,3498.0,2.2934]
[1721197511165,2.85828,3498.6,3498.0,2.2934]
[1721197511369,2.85836,3498.5,3498.0,2.2934]
[1721197512134,2.8586,3498.3,3498.0,2.2934]
[1721197512422,2.85869,3498.1,3498.0,2.2934]
[1721197514308,2.85851,3498.4,3498.0,2.2934]
[1721197514506,2.85829,3498.6,3498.0,2.2934]
[1721197514710,2.85842,3498.5,3498.0,2.2934]
[1721197515513,2.85829,3498.6,3498.0,2.2934]
[1721197515727,2.85838,3498.5,3498.0,2.2934]
[1721197515894,2.85825,3498.7,3498.0,2.2934]
[1721197516207,2.85829,3498.6,3498.0,2.2934]
[1721197517603,2.85814,3498.8,3498.1,2.2813]
[1721197517808,2.85825,3498.7,3498.1,2.2813]
[1721197520412,2.85828,3498.6,3498.1,2.2813]
[1721197520772,2.85825,3498.7,3498.1,2.2813]
[1721197521282,2.85804,3498.9,3498.2,2.2813]
[1721197522079,2.8582,3498.7,3498.2,2.2813]
[1721197525988,2.85829,3498.6,3498.2,2.2813]
[1721197527576,2.85829,3498.6,3498.3,0.04726541]
[1721197528837,2.85812,3498.8,3498.3,0.04726541]
[1721197528994,2.85821,3498.7,3498.3,0.04726541]
[1721197531381,2.85829,3498.6,3498.3,0.04726541]
[1721197531578,2.85821,3498.7,3498.3,0.04726541]
[1721197531820,2.85843,3498.5,3498.3,0.04726541]
[1721197532186,2.85853,3498.3,3498.2,2.2813]
[1721197532506,2.85853,3498.3,3498.2,2.32859431]
[1721197534228,5.71686,3498.5,3498.2,2.32859431]
[1721197534529,2.85821,3498.7,3498.2,2.32859431]
[1721197538902,2.8583,3498.6,3498.2,2.32859431]
[1721197541354,2.85838,3498.5,3498.2,2.32859431]
[1721197541541,2.85853,3498.3,3498.2,2.32859431]
[1721197541741,3.430221,3498.3,3498.2,2.32859431]
[1721197541932,2.85842,3498.5,3498.2,0.04729431]
[1721197542324,2.85842,3498.5,3497.9,2.4138]
[1721197542555,2.85844,3498.4,3498.3,0.04725072]
[1721197542846,2.85844,3498.4,3497.9,2.4138]
[1721197543019,2.85844,3498.4,3498.3,0.04725072]
[1721197543229,2.85844,3498.4,3497.9,2.4138]
[1721197543412,2.85844,3498.4,3498.3,0.04725072]
[1721197543843,2.85844,3498.4,3497.9,2.4138]
[1721197544026,2.85844,3498.4,3498.3,0.04725072]
[1721197544235,2.85844,3498.4,3497.9,2.4138]
[1721197544757,2.85844,3498.4,3498.0,0.04740077]
[1721197545553,2.85858,3498.3,3498.0,0.04740077]
[1721197546814,2.85862,3498.2,3498.0,0.04740077]
[1721197547019,2.85869,3498.1,3498.0,0.04740077]
[1721197547266,5.71738,3498.1,3498.0,0.04740077]
[1721197547421,5.71738,3498.1,3497.4,2.4332227]
[1721197547422,2.85891,3497.9,3497.4,2.4332227]
[1721197547622,2.85891,3497.9,3497.5,0.07003158]
[1721197547959,2.85891,3497.9,3497.5,0.11621468]
[1721197550741,2.85869,3498.1,3497.5,0.11621468]
[1721197551175,2.85855,3498.3,3497.6,2.3976]
[1721197551471,2.85839,3498.5,3497.7,2.52277878]
[1721197551694,2.85845,3498.4,3497.9,2.4411]
[1721197551991,2.8582,3498.7,3498.0,0.04596671]
[1721197552271,2.8585,3498.4,3498.0,0.04596671]
[1721197552571,2.85853,3498.3,3498.0,0.04596671]
[1721197552775,2.85842,3498.5,3498.0,0.04596671]
[1721197553349,2.85846,3498.4,3498.0,0.04596671]
[1721197554274,2.85837,3498.5,3498.0,0.04596671]
[1721197554582,3.172789,3498.5,3498.0,0.04596671]
[1721197554787,2.85867,3498.2,3498.0,0.04596671]
[1721197555146,2.85869,3498.1,3497.6,2.3314]
[1721197555343,2.85869,3498.1,3497.7,0.07002758]
[1721197556560,2.85893,3497.8,3497.7,0.07002758]
[1721197556803,2.85893,3497.8,3497.5,0.08167644]
[1721197556804,2.8591,3497.6,3497.5,0.08167644]
[1721197557017,5.64832896,3497.5,3497.4,0.1511227]
[1721197558269,8.50750896,3497.5,3497.4,0.1511227]
[1721197558468,11.50750896,3497.5,3497.4,0.1511227]
[1721197560675,8.64832896,3497.5,3497.4,0.1511227]
[1721197561078,9.82765216,3497.5,3497.4,0.1511227]
[1721197562017,8.64832896,3497.5,3497.4,0.1511227]
[1721197564681,2.78914896,3497.5,3497.4,0.1511227]
[1721197565109,2.78914896,3497.5,3497.4,0.19459168]
[1721197565813,2.85903,3497.7,3497.4,0.19459168]
[1721197566005,2.85911,3497.6,3497.4,0.19459168]
[1721197566663,2.85918,3497.5,3497.4,0.19459168]
[1721197567888,2.85918,3497.5,3497.4,0.1511227]
[1721197569004,6.15083768,3497.5,3497.4,0.1511227]
[1721197573940,12.01001768,3497.5,3497.4,0.1511227]
[1721197575047,14.86919768,3497.5,3497.4,0.1511227]
[1721197575204,2.86061,3495.8,3495.6,7.39]
[1721197575407,2.85975,3496.9,3495.3,2.3656]
[1721197575408,2.86049,3495.9,3495.3,2.3656]
[1721197575831,2.86066,3495.7,3495.3,2.3656]
[1721197576650,2.86042,3496.0,3495.3,2.3656]
[1721197576856,2.86045,3496.0,3495.3,2.3656]
[1721197577013,2.86023,3496.3,3495.4,2.86084]
[1721197577317,2.86049,3495.9,3495.5,2.351]
[1721197577906,2.86033,3496.1,3495.5,2.351]
[1721197578106,2.86023,3496.3,3495.6,2.86069]
[1721197578309,7.32,3497.1,3495.5,2.351]
[1721197578549,2.86037,3496.1,3495.5,2.351]
[1721197579350,2.86024,3496.2,3495.5,2.351]
[1721197579511,2.86037,3496.1,3495.5,2.351]
[1721197579718,2.86024,3496.2,3495.5,2.351]
[1721197580140,2.86041,3496.0,3495.5,2.351]
[1721197581758,2.86063,3495.8,3495.5,2.351]
[1721197581963,2.86073,3495.6,3495.0,2.428]
[1721197582665,2.8603,3496.2,3495.0,2.428]
[1721197582666,2.86082,3495.5,3495.0,2.428]
[1721197583173,7.55992,3496.4,3495.0,2.428]
[1721197583334,4.487992,3496.3,3495.0,2.428]
[1721197583530,3.0,3496.3,3495.4,2.4018]
[1721197583735,2.86009,3496.4,3495.5,0.05721051]
[1721197583972,2.85996,3496.6,3495.5,0.0433111]
[1721197584170,2.85996,3496.6,3495.7,5.31074]
[1721197584693,2.85996,3496.6,3495.8,2.90373084]
[1721197584842,2.85985,3496.7,3495.8,2.90373084]
[1721197585177,2.85993,3496.6,3495.8,2.90373084]
[1721197585476,3.0,3497.2,3496.1,2.86032]
[1721197585477,2.85945,3497.2,3496.1,2.86032]
[1721197585776,2.85945,3497.2,3496.2,0.04298947]
[1721197585777,2.85965,3497.0,3496.2,0.04298947]
[1721197585954,2.85978,3496.8,3496.2,0.04298947]
[1721197586151,2.85964,3497.0,3496.2,0.04298947]
[1721197586351,2.85964,3497.0,3496.1,2.86032]
[1721197586575,2.85967,3496.9,3496.1,2.86032]
[1721197586755,2.85967,3496.9,3496.3,0.04293939]
[1721197586958,2.85967,3496.9,3496.1,2.86032]
[1721197587274,2.85967,3496.9,3496.4,0.04288933]
[1721197587478,2.85967,3496.9,3496.1,2.86032]
[1721197587682,2.85984,3496.7,3496.0,2.3038]
[1721197587866,5.72032,3496.3,3496.2,0.04298947]
[1721197588182,2.86036,3496.1,3495.6,2.3705]
[1721197588681,2.86016,3496.3,3495.6,5.23123]
[1721197588877,2.86016,3496.3,3495.6,2.3705]
[1721197589438,2.86041,3496.0,3495.6,2.3705]
[1721197589995,2.86025,3496.2,3495.1,2.3886]
[1721197589996,2.86082,3495.5,3495.1,2.3886]
[1721197590883,2.86035,3496.1,3495.1,2.3886]
[1721197591072,0.572017,3496.3,3495.3,2.3886]
[1721197591073,2.86019,3496.3,3495.3,2.3886]
[1721197591301,2.86038,3496.1,3495.4,2.86089]
[1721197591467,2.86038,3496.1,3495.3,5.24958]
[1721197591798,2.86038,3496.1,3495.4,2.86089]
[1721197591958,2.86019,3496.3,3495.4,2.86089]
[1721197592160,2.86033,3496.1,3495.4,2.86089]
[1721197593059,2.8602,3496.3,3495.5,2.307]
[1721197593254,2.86032,3496.2,3495.5,2.307]
[1721197593472,2.86034,3496.1,3495.5,2.307]
[1721197594291,2.86042,3496.0,3495.5,2.307]
[1721197594593,2.86058,3495.8,3495.5,2.307]
[1721197595157,2.86058,3495.8,3494.9,2.86129]
[1721197595158,2.86037,3496.1,3495.0,2.3247]
[1721197595363,2.86082,3495.5,3495.0,2.3247]
[1721197596259,2.8609,3495.4,3495.0,2.3247]
[1721197597094,2.86109,3495.2,3494.8,0.0564358]
[1721197597779,2.86051,3495.9,3494.8,0.0564358]
[1721197597780,2.86101,3495.3,3494.8,0.0564358]
[1721197598285,2.86082,3495.5,3494.8,0.0564358]
[1721197598488,2.86082,3495.5,3494.9,2.2961]
[1721197598687,2.8609,3495.4,3494.9,2.2961]
[1721197598908,2.86065,3495.7,3494.9,2.2961]
[1721197599068,2.86083,3495.5,3494.9,2.2961]
[1721197600196,2.86065,3495.7,3494.9,2.2961]
[1721197600511,2.8609,3495.4,3494.9,2.2961]
[1721197600718,0.286065,3495.6,3494.8,0.0564358]
[1721197600719,2.86128,3495.0,3494.8,0.0564358]
[1721197602107,0.286065,3495.6,3494.8,0.0564358]
[1721197602289,2.86076,3495.6,3494.9,2.3839]
[1721197602465,2.86091,3495.4,3494.9,2.3839]
[1721197602666,2.86091,3495.4,3495.0,0.04166116]
[1721197603100,2.86076,3495.6,3495.0,0.04166116]
[1721197603308,2.86083,3495.5,3495.0,0.04166116]
[1721197603593,3.432989,3495.5,3495.0,0.04166116]
[1721197605302,2.86083,3495.5,3495.0,0.04166116]
[1721197607718,2.86091,3495.4,3495.0,0.04166116]
[1721197609815,2.86069,3495.7,3495.0,0.04166116]
[1721197610021,2.86087,3495.5,3495.0,0.04166116]
[1721197611017,2.8609,3495.4,3495.0,0.04166116]
[1721197614218,2.86114,3495.2,3495.0,0.04166116]
[1721197614379,2.86114,3495.1,3494.8,0.0564358]
[1721197615173,2.86103,3495.3,3494.8,0.0564358]
[1721197615502,2.86103,3495.3,3494.9,2.4643]
[1721197615808,5.26353,3495.9,3494.9,2.4643]
[1721197615809,2.86115,3495.1,3494.9,2.4643]
[1721197616916,0.572195,3495.3,3494.9,2.4643]
[1721197616917,3.433245,3495.3,3494.9,2.4643]
[1721197617078,2.86107,3495.2,3494.9,2.4643]
[1721197617275,2.86116,3495.1,3494.8,0.0564358]
[1721197617590,2.86116,3495.1,3494.9,0.04039401]
[1721197618780,2.86091,3495.4,3494.9,0.04039401]
[1721197618983,2.86091,3495.4,3494.8,0.0564358]
[1721197618984,2.86097,3495.4,3494.8,0.0564358]
[1721197619300,2.86098,3495.3,3495.0,0.04034662]
[1721197619619,2.86098,3495.3,3495.1,0.04029652]
[1721197619834,2.86098,3495.3,3494.8,0.0564358]
[1721197620041,2.86098,3495.3,3495.2,0.04024641]
[1721197620337,2.86098,3495.3,3494.8,0.0564358]
[1721197620535,2.86098,3495.3,3495.2,0.04024641]
[1721197620751,2.86117,3495.1,3494.8,0.0564358]
[1721197621619,3.433166,3495.3,3494.8,0.0564358]
[1721197622037,2.86117,3495.1,3494.8,0.0564358]
[1721197624846,2.86098,3495.3,3494.8,0.0564358]
[1721197625055,2.86107,3495.2,3494.8,0.0564358]
[1721197625952,2.86115,3495.1,3494.8,0.0564358]
[1721197628245,2.86102,3495.3,3494.8,0.0564358]
[1721197628416,2.86098,3495.4,3494.9,2.2692]
[1721197628627,2.86105,3495.3,3494.9,2.2692]
[1721197629928,2.86082,3495.5,3494.9,2.2692]
[1721197630129,2.86093,3495.4,3494.9,2.2692]
[1721197630473,2.86069,3495.7,3494.9,2.2692]
[1721197631468,2.86082,3495.5,3494.9,2.2692]
[1721197632622,2.86082,3495.5,3495.0,0.04034844]
[1721197633661,2.8609,3495.4,3495.0,0.04034844]
[1721197634460,2.86107,3495.2,3495.0,0.04034844]
[1721197635557,2.8606,3495.8,3495.0,0.04034844]
[1721197635558,2.86114,3495.1,3495.0,0.04034844]
[1721197635764,5.72228,3495.1,3495.0,0.04034844]
[1721197635968,2.86129,3495.0,3494.8,0.0564358]
[1721197636269,2.86131,3494.9,3494.8,0.0564358]
[1721197638035,2.86098,3495.3,3494.8,0.0564358]
[1721197638427,2.86098,3495.3,3494.9,2.3955]
[1721197638643,5.403,3496.1,3494.8,0.0564358]
[1721197638644,2.3176,3495.4,3494.8,0.0564358]
[1721197638843,2.86114,3495.2,3494.8,0.0564358]
[1721197639083,2.86115,3495.1,3494.8,0.0564358]
[1721197640082,2.86093,3495.4,3494.8,0.0564358]
[1721197640255,2.86112,3495.2,3494.8,0.0564358]
[1721197640457,2.86115,3495.1,3494.8,0.0564358]
[1721197640991,2.86062,3495.8,3494.8,0.0564358]
[1721197640992,2.86131,3494.9,3494.8,0.0564358]
[1721197641193,5.72262,3494.9,3494.8,0.0564358]
[1721197642272,2.86131,3494.9,3494.8,0.0564358]
[1721197646593,2.86131,3494.9,3494.8,2.3107358]
[1721197647343,2.95179123,3496.8,3494.8,2.3107358]
[1721197647344,2.86098,3495.3,3494.8,2.3107358]
[1721197647521,2.86087,3495.5,3494.8,3.3147358]
[1721197647664,2.86087,3495.5,3494.9,0.0391796]
[1721197648417,2.86107,3495.2,3494.9,0.0391796]
[1721197648571,2.8609,3495.4,3494.9,0.0391796]
[1721197649000,2.861,3495.3,3494.9,0.0391796]
[1721197650109,2.86076,3495.6,3495.0,2.3937]
[1721197650413,2.86101,3495.3,3495.0,2.3937]
[1721197650703,2.86101,3495.3,3495.1,0.03760965]
[1721197651219,2.86095,3495.4,3495.1,0.03760965]
[1721197651717,2.86099,3495.3,3495.1,0.03760965]
[1721197652421,2.86106,3495.2,3495.1,0.03760965]
[1721197653472,2.86082,3495.5,3495.1,0.03760965]
[1721197653701,2.86106,3495.2,3495.1,0.03760965]
[1721197659040,2.2521,3496.2,3495.1,0.03760965]
[1721197659041,2.86046,3496.0,3495.2,2.2823]
[1721197659254,0.66306194,3496.9,3495.7,1.004]
[1721197659255,2.86031,3496.2,3495.7,1.004]
[1721197659550,2.86042,3496.0,3495.8,2.2823]
[1721197659731,2.86042,3496.0,3495.8,2.31952264]
[1721197660601,1.004,3496.7,3495.8,2.31952264]
[1721197660936,2.86025,3496.2,3495.8,2.31952264]
[1721197661516,2.86022,3496.3,3495.8,2.31952264]
[1721197662016,2.85994,3496.6,3495.8,2.31952264]
[1721197662225,2.86042,3496.0,3495.8,2.31952264]
[1721197662542,0.285994,3496.5,3494.9,7.39]
[1721197662842,0.285994,3496.5,3494.8,0.65316704]
[1721197662843,2.86081,3495.6,3495.0,2.4392444]
[1721197663251,2.86082,3495.5,3495.0,2.4392444]
[1721197663415,2.86106,3495.3,3495.0,2.4392444]
[1721197663920,2.86082,3495.5,3495.0,2.4392444]
[1721197664834,2.86067,3495.7,3495.0,2.4392444]
[1721197665055,2.86063,3495.8,3495.0,2.8987544]
[1721197665254,0.572114,3495.8,3495.1,2.4801]
[1721197665455,2.86084,3495.5,3495.1,2.51759429]
[1721197665628,2.86095,3495.4,3495.1,2.51759429]
[1721197666309,2.86074,3495.6,3495.1,2.51759429]
[1721197666713,2.86057,3495.9,3495.1,2.51759429]
[1721197667017,2.86016,3496.3,3495.1,2.51759429]
[1721197667018,2.8608,3495.6,3495.1,2.51759429]
[1721197668048,2.86073,3495.7,3495.1,2.51759429]
[1721197668250,2.86058,3495.8,3495.1,2.51759429]
[1721197668451,2.86065,3495.7,3495.1,2.51759429]
[1721197668756,2.86076,3495.6,3495.1,2.51759429]
[1721197669255,2.86082,3495.5,3495.1,2.51759429]
[1721197670931,2.86065,3495.7,3495.1,2.51759429]
[1721197671459,2.86036,3496.1,3495.1,2.51759429]
[1721197671626,2.8607,3495.7,3495.1,2.51759429]
[1721197672029,2.86084,3495.5,3495.1,2.51759429]
[1721197672924,2.86099,3495.3,3495.1,2.51759429]
[1721197674072,2.86106,3495.2,3495.1,2.51759429]
[1721197674266,5.72212,3495.2,3495.1,2.51759429]
[1721197675673,5.72212,3495.2,3495.1,2.4801]
[1721197675818,5.72212,3495.2,3495.1,2.51639162]
[1721197679372,9.441487,3495.2,3495.1,0.03629162]
[1721197679672,8.58393,3494.9,3494.8,0.0564358]
[1721197681322,5.72262,3494.9,3494.8,0.0564358]
[1721197681526,9.442322,3494.9,3494.8,0.0564358]
[1721197687527,14.578832,3494.9,3494.8,0.0564358]
[1721197690462,8.58393,3494.9,3494.8,0.0564358]
[1721197692569,11.44524,3494.9,3494.8,0.0564358]
[1721197692774,8.58393,3494.9,3494.8,0.0564358]
[1721197693083,11.44524,3494.9,3494.8,0.0564358]
[1721197693433,8.58393,3494.9,3494.8,0.0564358]
[1721197693781,9.442323,3494.9,3494.8,0.0564358]
[1721197694074,12.303633,3494.9,3494.8,0.0564358]
[1721197694274,9.442323,3494.9,3494.8,0.0564358]
[1721197700494,5.72262,3494.9,3494.8,0.0564358]
[1721197700796,8.58393,3494.9,3494.8,0.0564358]
[1721197700966,8.58393,3494.9,3494.8,0.09311121]
[1721197701163,11.44524,3494.9,3494.8,0.0564358]
[1721197702400,12.44924,3494.9,3494.8,0.0564358]
[1721197702687,13.694164,3494.9,3494.8,0.0564358]
[1721197708805,12.690164,3494.9,3494.8,0.0564358]
[1721197708976,13.694164,3494.9,3494.8,0.0564358]
[1721197711870,16.555474,3494.9,3494.8,0.0564358]
[1721197712271,16.555474,3494.9,3494.8,5.8e-06]
[1721197713294,19.555474,3494.9,3494.8,5.8e-06]
[1721197715615,21.855174,3494.9,3494.8,5.8e-06]
[1721197716463,22.15362709,3494.9,3494.8,5.8e-06]
[1721197716668,14.3098,3494.1,3494.0,8.5e-06]
[1721197716903,16.99266,3494.1,3494.0,8.5e-06]
[1721197718563,14.1307,3494.1,3494.0,8.5e-06]
[1721197718984,13.1267,3494.1,3494.0,8.5e-06]
[1721197719167,9.58988,3494.1,3494.0,8.5e-06]
[1721197722697,8.58588,3494.1,3494.0,8.5e-06]
[1721197725779,5.72392,3494.1,3494.0,8.5e-06]
[1721197726124,8.58588,3494.1,3494.0,8.5e-06]
[1721197726283,5.72392,3494.1,3494.0,8.5e-06]
[1721197727981,2.86196,3494.1,3494.0,2.2756085]
[1721197728478,2.86196,3494.1,3494.0,2.31163006]
[1721197729944,2.86186,3494.3,3494.0,2.31163006]
[1721197730224,5.86188,3494.2,3494.0,2.31163006]
[1721197731137,2.86196,3494.1,3494.0,2.31163006]
[1721197732238,5.72392,3494.1,3494.0,2.31163006]
[1721197732801,5.72392,3494.1,3494.0,2.2756085]
[1721197734213,5.72392,3494.1,3494.0,2.31163006]
[1721197734936,2.86196,3494.1,3494.0,2.31163006]
[1721197738247,5.72392,3494.1,3494.0,2.31163006]
[1721197738410,6.696712,3494.1,3494.0,2.31163006]
[1721197738606,6.696712,3494.1,3494.0,2.2756085]
[1721197739507,9.558672,3494.1,3494.0,8.5e-06]
[1721197746857,6.696712,3494.1,3494.0,8.5e-06]
[1721197747064,5.72392,3494.1,3494.0,2.4250085]
[1721197754633,2.86196,3494.1,3494.0,2.4250085]
[1721197754989,2.86196,3494.1,3494.0,2.4598145]
[1721197766778,5.86194,3494.2,3494.0,2.4598145]
[1721197768415,3.0,3494.2,3494.0,2.4598145]
[1721197768583,5.8618,3494.3,3494.0,2.4598145]
[1721197771103,6.8658,3494.3,3494.0,2.4598145]
[1721197771284,7.838546,3494.3,3494.0,2.4598145]
[1721197772121,2.86188,3494.2,3494.0,2.4598145]
[1721197775416,5.8618,3494.3,3494.0,2.4598145]
[1721197782227,3.0,3494.3,3494.0,2.4598145]
[1721197782597,2.86128,3495.0,3494.0,2.4598145]
[1721197782800,0.44880712,3495.6,3494.6,1.004]
[1721197783013,2.86108,3495.2,3494.7,2.31215569]
[1721197783227,2.86092,3495.4,3494.7,2.31215569]
[1721197783393,2.86092,3495.4,3494.9,2.3439]
[1721197783597,2.86092,3495.4,3495.0,2.37576943]
[1721197784348,2.86075,3495.6,3495.0,2.37576943]
[1721197784545,3.86458,3495.8,3495.0,2.37576943]
[1721197784546,2.86084,3495.5,3495.0,2.37576943]
[1721197785038,2.86084,3495.5,3495.1,2.456]
[1721197785247,2.86084,3495.5,3495.2,0.03049617]
[1721197786332,2.86084,3495.5,3495.3,2.3042]
[1721197786738,2.86074,3495.6,3495.4,0.03039597]
[1721197792554,2.8606,3495.8,3495.4,0.03039597]
[1721197792705,3.0,3496.2,3495.7,1.004]
[1721197793040,3.0,3496.2,3495.8,0.03016937]
[1721197793041,2.86025,3496.2,3495.8,0.03016937]
[1721197793243,2.86025,3496.2,3495.7,1.004]
[1721197793443,2.86025,3496.2,3495.8,0.03016937]
[1721197793736,2.86025,3496.2,3495.7,1.004]
[1721197793914,2.86014,3496.4,3495.9,0.03011929]
[1721197794122,0.572007,3496.3,3495.8,0.03016937]
[1721197794339,0.572007,3496.3,3496.0,0.03006921]
[1721197794539,0.572007,3496.3,3495.9,0.03011929]
[1721197794742,0.572007,3496.3,3495.7,1.004]
[1721197794743,0.572007,3496.3,3496.1,0.03001913]
[1721197794939,0.572007,3496.3,3496.0,0.03006921]
[1721197795241,2.85965,3497.0,3496.3,2.86016]
[1721197795443,2.85965,3497.0,3496.4,0.02986892]
[1721197795631,0.285965,3496.9,3496.4,0.02986892]
[1721197795828,2.85986,3496.7,3496.4,0.02986892]
[1721197796033,2.85986,3496.7,3496.0,2.429]
[1721197796365,2.86024,3496.2,3496.1,0.02984547]
[1721197796506,9.58472,3496.2,3496.1,0.02984547]
[1721197796707,2.86078,3495.6,3495.2,2.4464]
[1721197796908,1.004,3495.4,3494.9,2.4464]
[1721197797416,2.86108,3495.2,3495.0,0.02835861]
[1721197797671,2.86108,3495.2,3494.5,2.4464]
[1721197797838,2.86108,3495.2,3495.1,0.02837433]
[1721197798039,3.533687,3495.2,3494.5,2.4464]
[1721197798243,3.533687,3495.2,3494.6,0.02862488]
[1721197798460,2.86115,3495.1,3494.6,0.02862488]
[1721197798792,6.72694,3494.7,3494.6,0.02862488]
[1721197798941,10.399634,3494.7,3494.6,0.02862488]
[1721197799138,2.86189,3494.2,3493.7,2.4909]
[1721197799339,3.86589,3494.2,3493.7,2.4909]
[1721197799558,3.86589,3494.2,3494.1,0.03571603]
[1721197799845,3.86589,3494.2,3493.7,2.4909]
[1721197800176,2.86196,3494.1,3493.3,9.7391]
[1721197800386,2.86196,3494.1,3493.3,12.60172]
[1721197800743,2.86196,3494.1,3493.3,9.7391]
[1721197803774,5.72392,3494.1,3493.3,9.7391]
[1721197806069,5.72392,3494.1,3493.3,2.3491]
[1721197807885,5.72392,3494.1,3492.5,0.005]
[1721197807886,13.92714,3494.1,3492.5,2.3385]
[1721197808049,19.33714,3494.1,3492.5,2.3385]
[1721197809582,13.99588,3494.1,3492.5,5.20174]
[1721197809746,15.395468,3494.1,3492.5,5.20174]
[1721197812290,18.257428,3494.1,3492.5,9.7285]
[1721197814001,15.395468,3494.1,3493.2,2.2716]
[1721197814671,5.72392,3494.1,3493.2,2.2716]
[1721197814881,5.72392,3494.1,3493.9,2.3855]
[1721197815705,2.86196,3494.1,3493.9,2.3855]
[1721197815915,5.72392,3494.1,3493.4,2.4998]
[1721197816385,8.72392,3494.1,3493.4,2.4998]
[1721197816806,16.85784,3494.1,3493.0,2.284]
[1721197816980,18.789324,3494.1,3493.0,2.284]
[1721197818727,5.72638,3492.6,3492.5,0.005]
[1721197820223,8.58957,3492.6,3492.5,0.005]
[1721197821018,5.72638,3492.6,3492.5,0.005]
[1721197824914,3.0,3493.0,3492.5,0.005]
[1721197825118,2.8627,3493.3,3492.5,0.005]
[1721197825282,2.86221,3493.8,3492.5,0.005]
[1721197825283,2.86294,3493.0,3492.5,0.005]
[1721197825485,2.86295,3492.9,3492.5,0.005]
[1721197825934,2.86283,3493.1,3492.5,0.005]
[1721197826234,2.86288,3493.0,3492.5,0.005]
[1721197826420,2.85832076,3493.0,3492.5,0.005]
[1721197827092,2.86194,3494.2,3492.6,2.4651]
[1721197827319,2.86237,3493.6,3492.8,2.86302]
[1721197827525,2.8628,3493.1,3492.5,2.4701]
[1721197830356,2.86287,3493.0,3492.5,2.4701]
[1721197830760,2.86233,3493.7,3492.5,2.4701]
[1721197830917,2.86319,3492.6,3492.5,0.005]
[1721197831120,5.72638,3492.6,3492.5,0.005]
[1721197832660,8.58957,3492.6,3492.5,0.005]
[1721197835057,5.72638,3492.6,3492.5,0.005]
[1721197835441,2.86319,3492.6,3492.5,0.005]
[1721197836286,2.86305,3492.8,3492.5,0.005]
[1721197836497,3.0,3493.0,3492.5,0.005]
[1721197836680,5.86281,3493.1,3492.5,0.005]
[1721197836844,2.86287,3493.0,3492.5,0.005]
[1721197837051,2.86276,3493.2,3492.5,0.005]
[1721197837892,2.86278,3493.1,3492.5,0.005]
[1721197838246,2.86263,3493.3,3492.5,2.86827]
[1721197838660,2.86247,3493.5,3492.7,2.86311]
[1721197839753,2.8623,3493.7,3492.8,2.86301]
[1721197839959,2.8623,3493.7,3492.9,2.4211]
[1721197840158,2.86215,3493.9,3492.9,2.4211]
[1721197840159,2.86239,3493.6,3492.9,2.4211]
[1721197840661,2.86222,3493.8,3492.9,5.28399]
[1721197840863,5.86231,3493.7,3492.9,5.28399]
[1721197841081,2.86231,3493.7,3492.9,5.28399]
[1721197841589,5.86211,3494.0,3493.0,2.86285]
[1721197841788,2.86211,3494.0,3493.0,2.86285]
[1721197842159,2.8623,3493.7,3493.0,2.86285]
[1721197844474,2.86226,3493.8,3493.1,2.86278]
[1721197844875,2.8623,3493.7,3493.1,2.86278]
[1721197845191,2.8623,3493.7,3492.9,2.4211]
[1721197845491,2.86237,3493.6,3492.9,2.4211]
[1721197845668,2.86246,3493.5,3492.9,2.4211]
[1721197846491,2.8626,3493.4,3492.9,2.4211]
[1721197847575,2.86262,3493.3,3492.9,2.4211]
[1721197848175,2.8625,3493.5,3492.9,2.4211]
[1721197848365,2.86237,3493.6,3492.9,2.4211]
[1721197848985,2.86235,3493.7,3492.9,5.28403]
[1721197849188,2.86235,3493.7,3493.0,2.86284]
[1721197853004,2.86235,3493.7,3492.9,2.4211]
[1721197853300,2.375,3493.2,3492.5,0.005]
[1721197853506,5.72638,3492.6,3492.5,0.005]
[1721197855005,2.86319,3492.6,3492.5,0.005]
[1721197855385,2.86303,3492.8,3492.5,0.005]
[1721197855579,3.0,3492.7,3492.5,0.005]
[1721197856769,5.86312,3492.7,3492.5,0.005]
[1721197857200,5.72638,3492.6,3492.5,0.005]
[1721197860870,8.58957,3492.6,3492.5,0.005]